[Event "Late-Titled-Tuesday-Blitz-May-07-2024"]
[Site "Chess.com"]
[Date "2024.05.07"]
[Round "7"]
[White "RantomOpening"]
[Black "TokChess"]
[Result "1-0"]
[WhiteElo "2507"]
[BlackElo "2623"]
[TimeControl "180+1"]
[EndTime "15:19:10 PDT"]
[Termination "RantomOpening won on time"]

1. Nc3 {[%clk 0:03:00]} 1... c5 {[%clk 0:02:59.4]} 2. Nf3 {[%clk 0:02:51.5]}
2... Nc6 {[%clk 0:02:59.7]} 3. d4 {[%clk 0:02:50.7]} 3... cxd4 {[%clk
0:02:59.6]} 4. Nxd4 {[%clk 0:02:51.6]} 4... g6 {[%clk 0:02:53.4]} 5. e4 {[%clk
0:02:45.2]} 5... Bg7 {[%clk 0:02:52.5]} 6. Be3 {[%clk 0:02:44]} 6... d6 {[%clk
0:02:48.8]} 7. Qd2 {[%clk 0:02:36.5]} 7... Nf6 {[%clk 0:02:48.4]} 8. Be2 {[%clk
0:02:24.9]} 8... O-O {[%clk 0:02:46.3]} 9. f3 {[%clk 0:02:19.9]} 9... Nxd4
{[%clk 0:02:40.9]} 10. Bxd4 {[%clk 0:02:19.6]} 10... Be6 {[%clk 0:02:41.8]} 11.
O-O {[%clk 0:02:15.4]} 11... Qa5 {[%clk 0:02:40.8]} 12. Rfd1 {[%clk 0:02:11.9]}
12... Rfc8 {[%clk 0:02:34.5]} 13. Rac1 {[%clk 0:02:06.1]} 13... Nd7 {[%clk
0:02:12.4]} 14. Bxg7 {[%clk 0:02:01.5]} 14... Kxg7 {[%clk 0:02:13.3]} 15. Qd4+
{[%clk 0:01:58.2]} 15... Qe5 {[%clk 0:02:13]} 16. f4 {[%clk 0:01:55.3]} 16...
Qxd4+ {[%clk 0:02:12.1]} 17. Rxd4 {[%clk 0:01:56.2]} 17... Rc5 {[%clk
0:02:07.2]} 18. g4 {[%clk 0:01:49.9]} 18... Rac8 {[%clk 0:01:52.5]} 19. f5
{[%clk 0:01:45.2]} 19... Bc4 {[%clk 0:01:50.4]} 20. Bxc4 {[%clk 0:01:41.4]}
20... Rxc4 {[%clk 0:01:51.3]} 21. Rcd1 {[%clk 0:01:41]} 21... Rxc3 {[%clk
0:01:41.1]} 22. bxc3 {[%clk 0:01:40.2]} 22... Rxc3 {[%clk 0:01:42]} 23. R4d3
{[%clk 0:01:30.7]} 23... Rxc2 {[%clk 0:01:41]} 24. R3d2 {[%clk 0:01:30.6]} 24...
Rc4 {[%clk 0:01:36.1]} 25. Rd4 {[%clk 0:01:30.4]} 25... Rc5 {[%clk 0:01:35.9]}
26. Rd5 {[%clk 0:01:30.1]} 26... Rc6 {[%clk 0:01:31.9]} 27. g5 {[%clk
0:01:30.1]} 27... Ra6 {[%clk 0:01:11.1]} 28. R1d2 {[%clk 0:01:27.5]} 28... f6
{[%clk 0:00:31.2]} 29. h4 {[%clk 0:01:23.8]} 29... Ne5 {[%clk 0:00:28.6]} 30.
Rc2 {[%clk 0:01:20.9]} 30... Nf3+ {[%clk 0:00:13.5]} 31. Kf2 {[%clk 0:01:20.3]}
31... Nxh4 {[%clk 0:00:14.4]} 32. Rc7 {[%clk 0:01:19.6]} 32... Kf7 {[%clk
0:00:14.5]} 33. Kg3 {[%clk 0:01:17.5]} 33... fxg5 {[%clk 0:00:13.6]} 34. fxg6+
{[%clk 0:01:17.8]} 34... Nxg6 {[%clk 0:00:09.6]} 35. Rxg5 {[%clk 0:01:18]} 35...
Rxa2 {[%clk 0:00:06.2]} 36. Rxb7 {[%clk 0:01:18.1]} 36... Ra3+ {[%clk
0:00:04.8]} 37. Kf2 {[%clk 0:01:17.6]} 37... Ne5 {[%clk 0:00:02.8]} 38. Rf5+
{[%clk 0:01:11]} 38... Ke6 {[%clk 0:00:02.4]} 39. Rf8 {[%clk 0:01:11.1]} 39...
Ra2+ {[%clk 0:00:02.7]} 40. Kf1 {[%clk 0:01:10.4]} 40... Ra3 {[%clk 0:00:03.3]}
41. Re8 {[%clk 0:01:10.3]} 41... Ng6 {[%clk 0:00:03.1]} 42. Ke2 {[%clk
0:01:07.2]} 42... Ke5 {[%clk 0:00:03.4]} 43. Rd7 {[%clk 0:01:04.6]} 43... Ra2+
{[%clk 0:00:03.6]} 44. Kd3 {[%clk 0:01:04.7]} 44... Nf4+ {[%clk 0:00:03.3]} 45.
Kc4 {[%clk 0:01:03.8]} 45... Ng6 {[%clk 0:00:03.1]} 46. Kb3 {[%clk 0:01:00.6]}
46... Re2 {[%clk 0:00:02.8]} 47. Rxa7 {[%clk 0:01:00.8]} 47... Re3+ {[%clk
0:00:03]} 48. Kc2 {[%clk 0:01:00.6]} 48... Rxe4 {[%clk 0:00:03.5]} 49. Rg8
{[%clk 0:00:56]} 49... Rh4 {[%clk 0:00:03.3]} 50. Rg7 {[%clk 0:00:56.2]} 50...
e6 {[%clk 0:00:02.5]} 51. Rxh7 {[%clk 0:00:55.5]} 51... Rg4 {[%clk 0:00:01.3]}
52. Ra5+ {[%clk 0:00:54.4]} 52... d5 {[%clk 0:00:01.5]} 53. Rh5+ {[%clk
0:00:55.3]} 53... Ke4 {[%clk 0:00:01.5]} 54. Ra6 {[%clk 0:00:56.2]} 54... e5
{[%clk 0:00:01.6]} 55. Rh1 {[%clk 0:00:55.2]} 55... Rg2+ {[%clk 0:00:01.7]} 56.
Kb3 {[%clk 0:00:52.9]} 56... Nf4 {[%clk 0:00:02.6]} 57. Re1+ {[%clk 0:00:51.7]}
57... Kf5 {[%clk 0:00:03.1]} 58. Ra8 {[%clk 0:00:52]} 58... d4 {[%clk
0:00:03.2]} 59. Rf8+ {[%clk 0:00:52.2]} 59... Kg4 {[%clk 0:00:03.2]} 60. Rxe5
{[%clk 0:00:51.6]} 60... d3 {[%clk 0:00:03.1]} 61. Re4 {[%clk 0:00:51.3]} 61...
Rf2 {[%clk 0:00:03.2]} 62. Rd4 {[%clk 0:00:51.1]} 62... Kg3 {[%clk 0:00:03.6]}
63. Rg8+ {[%clk 0:00:46.5]} 63... Kf3 {[%clk 0:00:03.4]} 64. Rf8 {[%clk
0:00:44.9]} 64... Ke3 {[%clk 0:00:03.6]} 65. Rd6 {[%clk 0:00:44.8]} 65... Ke2
{[%clk 0:00:02.9]} 66. Re8+ {[%clk 0:00:44.5]} 66... Kd2 {[%clk 0:00:03]} 67.
Red8 {[%clk 0:00:44.9]} 67... Rf3 {[%clk 0:00:02.8]} 68. Kc4 {[%clk 0:00:44.8]}
68... Ng2 {[%clk 0:00:02.4]} 69. Rxd3+ {[%clk 0:00:44.5]} 69... Rxd3 {[%clk
0:00:03]} 70. Rxd3+ {[%clk 0:00:45.4]} 70... Ke2 {[%clk 0:00:03.9]} 71. Rd8
{[%clk 0:00:44.9]} 71... Kf2 {[%clk 0:00:04.5]} 72. Kd3 {[%clk 0:00:44.9]} 72...
Kf3 {[%clk 0:00:04.3]} 73. Rf8+ {[%clk 0:00:44.5]} 73... Nf4+ {[%clk 0:00:05.2]}
74. Kd4 {[%clk 0:00:45.2]} 74... Kg4 {[%clk 0:00:05.3]} 75. Ke4 {[%clk
0:00:45.5]} 75... Ng6 {[%clk 0:00:05.1]} 76. Rg8 {[%clk 0:00:45.8]} 76... Kg5
{[%clk 0:00:06]} 77. Ra8 {[%clk 0:00:45.2]} 77... Kf6 {[%clk 0:00:06.2]} 78. Ra5
{[%clk 0:00:44.9]} 78... Ke6 {[%clk 0:00:05.9]} 79. Ra6+ {[%clk 0:00:44.7]}
79... Kf7 {[%clk 0:00:06.8]} 80. Kf5 {[%clk 0:00:44.8]} 80... Ne7+ {[%clk
0:00:06.4]} 81. Kg5 {[%clk 0:00:45.7]} 81... Nd5 {[%clk 0:00:05.3]} 82. Rh6
{[%clk 0:00:43.5]} 82... Ne7 {[%clk 0:00:05.1]} 83. Rf6+ {[%clk 0:00:41.5]}
83... Ke8 {[%clk 0:00:05.2]} 84. Re6 {[%clk 0:00:41.8]} 84... Kf7 {[%clk
0:00:04.5]} 85. Ra6 {[%clk 0:00:40.7]} 85... Ke8 {[%clk 0:00:05.4]} 86. Kf6
{[%clk 0:00:40.4]} 86... Nd5+ {[%clk 0:00:05.9]} 87. Ke5 {[%clk 0:00:40]} 87...
Ne7 {[%clk 0:00:04.4]} 88. Ke6 {[%clk 0:00:38.8]} 88... Nc8 {[%clk 0:00:04]} 89.
Ra1 {[%clk 0:00:35.9]} 89... Kd8 {[%clk 0:00:04.9]} 90. Rc1 {[%clk 0:00:35.4]}
90... Ne7 {[%clk 0:00:04.9]} 91. Rd1+ {[%clk 0:00:33.6]} 91... Ke8 {[%clk
0:00:04]} 92. Rh1 {[%clk 0:00:32.3]} 92... Ng8 {[%clk 0:00:02.1]} 93. Rh7 {[%clk
0:00:29.5]} 93... Kf8 {[%clk 0:00:03]} 94. Ra7 {[%clk 0:00:28.7]} 1-0

[Event "Late-Titled-Tuesday-Blitz-May-07-2024"]
[Site "Chess.com"]
[Date "2024.05.07"]
[Round "7"]
[White "Gareth-Bale11"]
[Black "Franmu14"]
[Result "1/2-1/2"]
[WhiteElo "2894"]
[BlackElo "2747"]
[TimeControl "180+1"]
[EndTime "15:21:27 PDT"]
[Termination "Game drawn by repetition"]

1. d4 {[%clk 0:02:54.2]} 1... d5 {[%clk 0:02:58.8]} 2. c4 {[%clk 0:02:54]} 2...
e6 {[%clk 0:02:59.2]} 3. Nf3 {[%clk 0:02:54.4]} 3... Nf6 {[%clk 0:02:59.8]} 4.
Nc3 {[%clk 0:02:55.1]} 4... Nbd7 {[%clk 0:03:00.2]} 5. cxd5 {[%clk 0:02:54.5]}
5... exd5 {[%clk 0:03:00.1]} 6. Bg5 {[%clk 0:02:55.2]} 6... c6 {[%clk
0:03:00.3]} 7. e3 {[%clk 0:02:55.7]} 7... h6 {[%clk 0:02:59.8]} 8. Bh4 {[%clk
0:02:55.1]} 8... Be7 {[%clk 0:03:00.1]} 9. Bd3 {[%clk 0:02:55.2]} 9... O-O
{[%clk 0:02:59.7]} 10. Qc2 {[%clk 0:02:55.8]} 10... Re8 {[%clk 0:03:00]} 11. O-O
{[%clk 0:02:55]} 11... Ne4 {[%clk 0:02:42.5]} 12. Bxe4 {[%clk 0:02:51.2]} 12...
Bxh4 {[%clk 0:02:35.3]} 13. Bh7+ {[%clk 0:02:48.9]} 13... Kh8 {[%clk 0:02:34.4]}
14. Bd3 {[%clk 0:02:49.8]} 14... Bf6 {[%clk 0:02:33.3]} 15. Rae1 {[%clk
0:02:36.9]} 15... Nb6 {[%clk 0:02:31.8]} 16. a3 {[%clk 0:02:12.8]} 16... Bg4
{[%clk 0:02:26.1]} 17. h3 {[%clk 0:01:53.7]} 17... Bxf3 {[%clk 0:02:24.6]} 18.
gxf3 {[%clk 0:01:54.6]} 18... Rc8 {[%clk 0:02:24.1]} 19. Ne2 {[%clk 0:01:53.8]}
19... a5 {[%clk 0:02:00.7]} 20. Kg2 {[%clk 0:01:51.7]} 20... Qd6 {[%clk
0:01:46.3]} 21. Ng3 {[%clk 0:01:48.8]} 21... g6 {[%clk 0:01:41.6]} 22. f4 {[%clk
0:01:47.1]} 22... c5 {[%clk 0:01:39.3]} 23. dxc5 {[%clk 0:01:44.8]} 23... Rxc5
{[%clk 0:01:33.6]} 24. Qe2 {[%clk 0:01:39.8]} 24... Nc4 {[%clk 0:01:17.1]} 25.
Bxc4 {[%clk 0:01:30.7]} 25... Rxc4 {[%clk 0:01:18]} 26. Rd1 {[%clk 0:01:28.9]}
26... Qc6 {[%clk 0:01:17]} 27. Qf3 {[%clk 0:01:25.3]} 27... d4 {[%clk
0:00:40.6]} 28. e4 {[%clk 0:01:21.2]} 28... Bh4 {[%clk 0:00:39.5]} 29. e5 {[%clk
0:01:19.1]} 29... Bxg3 {[%clk 0:00:37.9]} 30. Kxg3 {[%clk 0:01:04.8]} 30... Rd8
{[%clk 0:00:36.2]} 31. Rd2 {[%clk 0:01:03.3]} 31... Kg7 {[%clk 0:00:17]} 32.
Rfd1 {[%clk 0:01:02.6]} 32... Rd5 {[%clk 0:00:15.2]} 33. h4 {[%clk 0:01:00.8]}
33... h5 {[%clk 0:00:13.9]} 34. Qe4 {[%clk 0:00:56]} 34... a4 {[%clk 0:00:11.3]}
35. Rd3 {[%clk 0:00:48.7]} 35... Rb5 {[%clk 0:00:08.3]} 36. Qxc6 {[%clk
0:00:47.4]} 36... Rxc6 {[%clk 0:00:06.1]} 37. Rxd4 {[%clk 0:00:47.8]} 37... Rxb2
{[%clk 0:00:06.7]} 38. Rxa4 {[%clk 0:00:41]} 38... Rc3+ {[%clk 0:00:03.3]} 39.
Kg2 {[%clk 0:00:40.9]} 39... Rcc2 {[%clk 0:00:03.6]} 40. Rf1 {[%clk 0:00:40.3]}
40... Kf8 {[%clk 0:00:00.6]} 41. f5 {[%clk 0:00:36.3]} 41... Ke7 {[%clk
0:00:01.5]} 42. fxg6 {[%clk 0:00:32.6]} 42... fxg6 {[%clk 0:00:02.4]} 43. Kg3
{[%clk 0:00:33.1]} 43... Ke6 {[%clk 0:00:03.3]} 44. Re4 {[%clk 0:00:30.9]} 44...
Rc3+ {[%clk 0:00:03.8]} 45. f3 {[%clk 0:00:30.2]} 45... Rbb3 {[%clk 0:00:04.7]}
46. Kf4 {[%clk 0:00:29.3]} 46... Rxa3 {[%clk 0:00:05.2]} 47. Rb4 {[%clk
0:00:27.1]} 47... Rab3 {[%clk 0:00:06.1]} 48. Rd4 {[%clk 0:00:24.7]} 48... b5
{[%clk 0:00:06.3]} 49. Rd6+ {[%clk 0:00:24.9]} 49... Kf7 {[%clk 0:00:06.9]} 50.
Rf6+ {[%clk 0:00:25]} 50... Kg7 {[%clk 0:00:07.4]} 51. Kg5 {[%clk 0:00:21.8]}
51... Re3 {[%clk 0:00:06.3]} 52. Rxg6+ {[%clk 0:00:21.1]} 52... Kf7 {[%clk
0:00:06.3]} 53. Rf6+ {[%clk 0:00:21.4]} 53... Ke7 {[%clk 0:00:06.6]} 54. f4
{[%clk 0:00:22.3]} 54... Rg3+ {[%clk 0:00:06.6]} 55. Kf5 {[%clk 0:00:22.8]}
55... Rbc3 {[%clk 0:00:05.2]} 56. Ra1 {[%clk 0:00:22.7]} 56... Rc7 {[%clk
0:00:05]} 57. Raa6 {[%clk 0:00:21.3]} 57... b4 {[%clk 0:00:04.9]} 58. Rae6+
{[%clk 0:00:21.5]} 58... Kd7 {[%clk 0:00:05.6]} 59. Rb6 {[%clk 0:00:21.6]} 59...
b3 {[%clk 0:00:05]} 60. Rh6 {[%clk 0:00:21.9]} 60... Rcc3 {[%clk 0:00:03.3]} 61.
Rh7+ {[%clk 0:00:21.3]} 61... Kc8 {[%clk 0:00:03.7]} 62. Ra6 {[%clk 0:00:20.7]}
62... Kb8 {[%clk 0:00:03.7]} 63. Rb6+ {[%clk 0:00:21]} 63... Ka8 {[%clk
0:00:03.6]} 64. e6 {[%clk 0:00:20.2]} 64... Rgd3 {[%clk 0:00:02.8]} 65. e7
{[%clk 0:00:19.7]} 65... Re3 {[%clk 0:00:03.5]} 66. Re6 {[%clk 0:00:18.5]} 66...
Rxe6 {[%clk 0:00:03.4]} 67. Kxe6 {[%clk 0:00:18.7]} 67... Re3+ {[%clk
0:00:04.3]} 68. Kf7 {[%clk 0:00:13.3]} 68... b2 {[%clk 0:00:05.2]} 69. Rh8+
{[%clk 0:00:05.8]} 69... Kb7 {[%clk 0:00:05.1]} 70. e8=Q {[%clk 0:00:06]} 70...
Rxe8 {[%clk 0:00:05.2]} 71. Rxe8 {[%clk 0:00:06.9]} 71... b1=Q {[%clk
0:00:05.9]} 72. Kf6 {[%clk 0:00:06.5]} 72... Qb2+ {[%clk 0:00:03.1]} 73. Re5
{[%clk 0:00:06.1]} 73... Qh2 {[%clk 0:00:02.8]} 74. Kg5 {[%clk 0:00:05.5]} 74...
Qg3+ {[%clk 0:00:03.4]} 75. Kxh5 {[%clk 0:00:05.8]} 75... Qxf4 {[%clk
0:00:04.1]} 76. Rg5 {[%clk 0:00:06]} 76... Kc7 {[%clk 0:00:04.5]} 77. Rg4 {[%clk
0:00:05.5]} 77... Qf5+ {[%clk 0:00:04.7]} 78. Rg5 {[%clk 0:00:05.9]} 78... Qe4
{[%clk 0:00:05.1]} 79. Rg4 {[%clk 0:00:05.4]} 79... Qe7 {[%clk 0:00:04.4]} 80.
Kh6 {[%clk 0:00:04.6]} 80... Qf6+ {[%clk 0:00:04.6]} 81. Kh5 {[%clk 0:00:04.9]}
81... Qf3 {[%clk 0:00:04.5]} 82. Kg5 {[%clk 0:00:04.9]} 82... Kd6 {[%clk
0:00:05.2]} 83. h5 {[%clk 0:00:04.3]} 83... Ke6 {[%clk 0:00:04.5]} 84. h6 {[%clk
0:00:03.6]} 84... Qf6+ {[%clk 0:00:04.7]} 85. Kh5 {[%clk 0:00:03.8]} 85... Kf7
{[%clk 0:00:04.7]} 86. Rg7+ {[%clk 0:00:03.5]} 86... Kf8 {[%clk 0:00:04.5]} 87.
Rg5 {[%clk 0:00:04.4]} 87... Qf3+ {[%clk 0:00:04.6]} 88. Kh4 {[%clk 0:00:04.2]}
88... Qf4+ {[%clk 0:00:04.6]} 89. Kh5 {[%clk 0:00:04.5]} 89... Qh2+ {[%clk
0:00:04.8]} 90. Kg6 {[%clk 0:00:04.5]} 90... Kg8 {[%clk 0:00:05]} 91. Rf5 {[%clk
0:00:03.6]} 91... Qc2 {[%clk 0:00:04.5]} 92. Kg5 {[%clk 0:00:03.5]} 92... Kh7
{[%clk 0:00:04.6]} 93. Rf7+ {[%clk 0:00:03.5]} 93... Kg8 {[%clk 0:00:05.1]} 94.
Rg7+ {[%clk 0:00:03.5]} 94... Kh8 {[%clk 0:00:05.5]} 95. Kh5 {[%clk 0:00:03.9]}
95... Qh2+ {[%clk 0:00:05.3]} 96. Kg5 {[%clk 0:00:04.3]} 96... Qe5+ {[%clk
0:00:05.9]} 97. Kg6 {[%clk 0:00:03.5]} 97... Qe6+ {[%clk 0:00:06.5]} 98. Kh5
{[%clk 0:00:03.8]} 98... Qf5+ {[%clk 0:00:07.2]} 99. Kh4 {[%clk 0:00:04.2]}
99... Qf6+ {[%clk 0:00:06.9]} 100. Kh5 {[%clk 0:00:04.5]} 100... Qe6 {[%clk
0:00:07.3]} 101. Kg5 {[%clk 0:00:04.5]} 101... Qe5+ {[%clk 0:00:07.4]} 102. Kg6
{[%clk 0:00:04.4]} 102... Qe8+ {[%clk 0:00:06.8]} 103. Kg5 {[%clk 0:00:04.6]}
103... Qf8 {[%clk 0:00:06.8]} 104. Kg6 {[%clk 0:00:04.7]} 104... Qf4 {[%clk
0:00:06.7]} 105. Kh5 {[%clk 0:00:03.3]} 105... Qh2+ {[%clk 0:00:06.3]} 106. Kg5
{[%clk 0:00:03.5]} 106... Qd2+ {[%clk 0:00:06.7]} 107. Kh5 {[%clk 0:00:03.6]}
107... Qd1+ {[%clk 0:00:07.2]} 108. Kg6 {[%clk 0:00:03.9]} 108... Qd3+ {[%clk
0:00:06.6]} 109. Kh5 {[%clk 0:00:04.1]} 109... Qf3+ {[%clk 0:00:07]} 110. Kg5
{[%clk 0:00:04.2]} 110... Qe4 {[%clk 0:00:07.7]} 111. Kh5 {[%clk 0:00:04.4]}
111... Qf5+ {[%clk 0:00:07.9]} 112. Kh4 {[%clk 0:00:04.3]} 112... Qe5 {[%clk
0:00:08.2]} 113. Rg6 {[%clk 0:00:03.4]} 113... Kh7 {[%clk 0:00:08.2]} 114. Rg5
{[%clk 0:00:02.9]} 114... Qe2 {[%clk 0:00:07.2]} 115. Rg4 {[%clk 0:00:02.2]}
115... Kxh6 {[%clk 0:00:07]} 116. Rf4 {[%clk 0:00:02.9]} 116... Qh2+ {[%clk
0:00:06.6]} 117. Kg4 {[%clk 0:00:03.2]} 117... Qg2+ {[%clk 0:00:07.3]} 118. Kh4
{[%clk 0:00:03.5]} 118... Qd5 {[%clk 0:00:07.8]} 119. Rf6+ {[%clk 0:00:03.1]}
119... Kg7 {[%clk 0:00:08.2]} 120. Rf4 {[%clk 0:00:04]} 120... Kg6 {[%clk
0:00:08.5]} 121. Rg4+ {[%clk 0:00:04]} 121... Kf6 {[%clk 0:00:08.8]} 122. Rf4+
{[%clk 0:00:03.9]} 122... Kg6 {[%clk 0:00:09.1]} 123. Rg4+ {[%clk 0:00:04.3]}
123... Kh6 {[%clk 0:00:09.9]} 124. Rf4 {[%clk 0:00:04.6]} 124... Qe5 {[%clk
0:00:09.9]} 125. Rg4 {[%clk 0:00:04.3]} 125... Qf5 {[%clk 0:00:10.1]} 126. Kg3
{[%clk 0:00:03.5]} 126... Kh5 {[%clk 0:00:09.7]} 127. Rf4 {[%clk 0:00:04]}
127... Qd3+ {[%clk 0:00:09.5]} 128. Rf3 {[%clk 0:00:03.9]} 128... Qc2 {[%clk
0:00:09.4]} 129. Rf4 {[%clk 0:00:04.1]} 129... Kg5 {[%clk 0:00:09.2]} 130. Rg4+
{[%clk 0:00:04.6]} 130... Kf5 {[%clk 0:00:09.7]} 131. Rf4+ {[%clk 0:00:05.2]}
131... Ke5 {[%clk 0:00:10.4]} 132. Rf3 {[%clk 0:00:05.6]} 132... Qg6+ {[%clk
0:00:10.3]} 133. Kf2 {[%clk 0:00:05.6]} 133... Qg5 {[%clk 0:00:10.7]} 134. Re3+
{[%clk 0:00:05.6]} 134... Kf4 {[%clk 0:00:10.9]} 135. Rf3+ {[%clk 0:00:06.2]}
135... Ke4 {[%clk 0:00:11.4]} 136. Rg3 {[%clk 0:00:06.1]} 136... Qh4 {[%clk
0:00:10.5]} 137. Kg2 {[%clk 0:00:06.1]} 137... Qh5 {[%clk 0:00:11]} 138. Kg1
{[%clk 0:00:03]} 138... Kf4 {[%clk 0:00:11]} 139. Kg2 {[%clk 0:00:03.2]} 139...
Qe2+ {[%clk 0:00:10.9]} 140. Kh3 {[%clk 0:00:02.8]} 140... Qf1+ {[%clk
0:00:11.2]} 141. Kh2 {[%clk 0:00:02.7]} 141... Qf2+ {[%clk 0:00:11.1]} 142. Rg2
{[%clk 0:00:03.2]} 142... Qh4+ {[%clk 0:00:11.2]} 143. Kg1 {[%clk 0:00:03.7]}
143... Kf3 {[%clk 0:00:11.7]} 144. Rg6 {[%clk 0:00:02.9]} 144... Qe1+ {[%clk
0:00:11.1]} 145. Kh2 {[%clk 0:00:03.5]} 145... Qe5+ {[%clk 0:00:11.3]} 146. Kg1
{[%clk 0:00:03.5]} 146... Qd4+ {[%clk 0:00:11.4]} 147. Kh2 {[%clk 0:00:03.9]}
147... Qe5+ {[%clk 0:00:11.4]} 148. Kg1 {[%clk 0:00:04.1]} 148... Qc5+ {[%clk
0:00:12.1]} 149. Kh2 {[%clk 0:00:04.4]} 149... Qf2+ {[%clk 0:00:11.3]} 150. Kh1
{[%clk 0:00:03.2]} 150... Qe1+ {[%clk 0:00:10.6]} 151. Kh2 {[%clk 0:00:03.6]}
151... Qe5+ {[%clk 0:00:10.8]} 1/2-1/2

[Event "Late-Titled-Tuesday-Blitz-May-07-2024"]
[Site "Chess.com"]
[Date "2024.05.07"]
[Round "8"]
[White "Pachonpower"]
[Black "ATM622"]
[Result "0-1"]
[WhiteElo "2379"]
[BlackElo "2536"]
[TimeControl "180+1"]
[EndTime "15:23:57 PDT"]
[Termination "ATM622 won by resignation"]

1. d4 {[%clk 0:03:00.9]} 1... g6 {[%clk 0:02:57.1]} 2. Nf3 {[%clk 0:02:57.7]}
2... Bg7 {[%clk 0:02:56.9]} 3. Nc3 {[%clk 0:02:58.3]} 3... c5 {[%clk 0:02:56.5]}
4. e3 {[%clk 0:02:57.9]} 4... Nf6 {[%clk 0:02:55]} 5. b3 {[%clk 0:02:57.3]} 5...
cxd4 {[%clk 0:02:53.7]} 6. exd4 {[%clk 0:02:58.2]} 6... d5 {[%clk 0:02:54.1]} 7.
Bb2 {[%clk 0:02:58.4]} 7... O-O {[%clk 0:02:54.3]} 8. Be2 {[%clk 0:02:56.9]}
8... Nc6 {[%clk 0:02:50.7]} 9. O-O {[%clk 0:02:56.9]} 9... Bf5 {[%clk
0:02:51.2]} 10. a3 {[%clk 0:02:53.8]} 10... Rc8 {[%clk 0:02:50.9]} 11. Bd3
{[%clk 0:02:53.2]} 11... Ne4 {[%clk 0:02:41.7]} 12. Re1 {[%clk 0:02:39.7]} 12...
Nxd4 {[%clk 0:02:18.9]} 13. Nxd4 {[%clk 0:02:33.2]} 13... Bxd4 {[%clk
0:02:16.9]} 14. Bxe4 {[%clk 0:02:26.8]} 14... dxe4 {[%clk 0:02:15.4]} 0-1

[Event "Late-Titled-Tuesday-Blitz-May-07-2024"]
[Site "Chess.com"]
[Date "2024.05.07"]
[Round "8"]
[White "azikom"]
[Black "Sandstad"]
[Result "1-0"]
[WhiteElo "2734"]
[BlackElo "2432"]
[TimeControl "180+1"]
[EndTime "15:24:26 PDT"]
[Termination "azikom won by resignation"]

1. e4 {[%clk 0:02:59.4]} 1... e5 {[%clk 0:02:59.9]} 2. Nc3 {[%clk 0:02:59.4]}
2... Nf6 {[%clk 0:02:57.7]} 3. Bc4 {[%clk 0:02:58.4]} 3... Nc6 {[%clk
0:02:56.8]} 4. d3 {[%clk 0:02:57.8]} 4... Bc5 {[%clk 0:02:55.4]} 5. h3 {[%clk
0:02:56.8]} 5... d6 {[%clk 0:02:53.9]} 6. Nge2 {[%clk 0:02:56.8]} 6... a6 {[%clk
0:02:54]} 7. Ng3 {[%clk 0:02:56.8]} 7... Na5 {[%clk 0:02:50.6]} 8. Qf3 {[%clk
0:02:54.9]} 8... h6 {[%clk 0:02:44.9]} 9. Be3 {[%clk 0:02:53.9]} 9... Bb4 {[%clk
0:02:35]} 10. Bd2 {[%clk 0:02:53.7]} 10... Nxc4 {[%clk 0:02:34.1]} 11. dxc4
{[%clk 0:02:53.5]} 11... Be6 {[%clk 0:02:32.1]} 12. b3 {[%clk 0:02:53.3]} 12...
Qd7 {[%clk 0:02:29.9]} 13. a4 {[%clk 0:02:52.3]} 13... O-O-O {[%clk 0:02:09.1]}
14. O-O {[%clk 0:02:48.2]} 14... Rdg8 {[%clk 0:02:05.6]} 15. Rfd1 {[%clk
0:02:44.7]} 15... h5 {[%clk 0:02:04.2]} 16. Nd5 {[%clk 0:02:36.8]} 16... Bxd2
{[%clk 0:02:03.1]} 17. Rxd2 {[%clk 0:02:35.5]} 17... h4 {[%clk 0:01:50.6]} 18.
Nf1 {[%clk 0:02:30.6]} 18... Nxd5 {[%clk 0:01:48.9]} 19. cxd5 {[%clk 0:02:29.3]}
19... Bxh3 {[%clk 0:01:48.9]} 20. Qxh3 {[%clk 0:02:28.1]} 1-0

[Event "Late-Titled-Tuesday-Blitz-May-07-2024"]
[Site "Chess.com"]
[Date "2024.05.07"]
[Round "8"]
[White "hsd2016"]
[Black "Chessdreamer2020"]
[Result "0-1"]
[WhiteElo "2362"]
[BlackElo "2521"]
[TimeControl "180+1"]
[EndTime "15:24:39 PDT"]
[Termination "Chessdreamer2020 won by resignation"]

1. d4 {[%clk 0:03:00.9]} 1... d6 {[%clk 0:03:00.3]} 2. c4 {[%clk 0:03:01.2]}
2... e5 {[%clk 0:03:00]} 3. dxe5 {[%clk 0:03:01]} 3... dxe5 {[%clk 0:03:00.9]}
4. Qxd8+ {[%clk 0:03:01.7]} 4... Kxd8 {[%clk 0:03:01.8]} 5. Nc3 {[%clk
0:03:02.2]} 5... c6 {[%clk 0:03:02]} 6. Nf3 {[%clk 0:02:56]} 6... f6 {[%clk
0:03:01.9]} 7. e4 {[%clk 0:02:54.9]} 7... Be6 {[%clk 0:03:01.6]} 8. Be3 {[%clk
0:02:52.8]} 8... Nd7 {[%clk 0:03:00]} 9. O-O-O {[%clk 0:02:52.9]} 9... Kc7
{[%clk 0:02:59.3]} 10. Ne1 {[%clk 0:02:53.2]} 10... Nh6 {[%clk 0:02:58.8]} 11.
f3 {[%clk 0:02:52.8]} 11... Nf7 {[%clk 0:02:59]} 12. b3 {[%clk 0:02:53.3]} 12...
a5 {[%clk 0:02:57.9]} 13. Nd3 {[%clk 0:02:52.1]} 13... b6 {[%clk 0:02:56.6]} 14.
Kb2 {[%clk 0:02:51]} 14... Nd6 {[%clk 0:02:56.5]} 15. a4 {[%clk 0:02:48]} 15...
Nb7 {[%clk 0:02:56.7]} 16. g3 {[%clk 0:02:43.7]} 16... Ndc5 {[%clk 0:02:56.3]}
17. Nxc5 {[%clk 0:02:42.8]} 17... Bxc5 {[%clk 0:02:55.9]} 18. Bxc5 {[%clk
0:02:43.1]} 18... Nxc5 {[%clk 0:02:56.8]} 19. Be2 {[%clk 0:02:40.9]} 19... Rad8
{[%clk 0:02:56.3]} 20. f4 {[%clk 0:02:41]} 20... Rd4 {[%clk 0:02:49.1]} 21. Rxd4
{[%clk 0:02:36.3]} 21... exd4 {[%clk 0:02:48.7]} 22. Nd1 {[%clk 0:02:36.4]}
22... Nxe4 {[%clk 0:02:47.6]} 23. Re1 {[%clk 0:02:36]} 23... Nc5 {[%clk
0:02:38.4]} 24. Nf2 {[%clk 0:02:34.7]} 24... Rd8 {[%clk 0:02:25.8]} 25. Nd3
{[%clk 0:02:33.8]} 25... Bf5 {[%clk 0:02:11]} 26. Kc2 {[%clk 0:02:24.2]} 26...
Re8 {[%clk 0:02:04.2]} 27. Kd2 {[%clk 0:02:23.9]} 27... Bxd3 {[%clk 0:02:00.1]}
0-1